fUST/lending_fUST_20250408
["ID","MTS","AMOUNT","RATE_DAILY","PERIOD"]
[357426775,1744063879962,-500.0,0.00022739,2]
[357426776,1744063879971,-500.0,0.00022739,2]
[357426777,1744063879981,-500.0,0.00022739,2]
[357426778,1744063879990,-500.0,0.00022739,2]
[357426779,1744063880001,-500.0,0.00022739,2]
[357426780,1744063880010,-500.0,0.00022739,2]
[357426781,1744063880020,-500.0,0.00022739,2]
[357426782,1744063880029,-500.0,0.00022739,2]
[357426783,1744063880039,-500.0,0.00022739,2]
[357426784,1744063880049,-500.0,0.00022739,2]
[357426785,1744063880058,-500.0,0.00022739,2]
[357426786,1744063880068,-500.0,0.00022739,2]
[357426787,1744063880077,-500.0,0.00022739,2]
[357426788,1744063880087,-500.0,0.00022739,2]
[357426789,1744063880097,-500.0,0.00022739,2]
[357426790,1744063880106,-500.0,0.00022739,2]
[357426791,1744063880115,-500.0,0.00022739,2]
[357426792,1744063880125,-826.9,0.00022739,2]
[357426793,1744063880136,-500.0,0.00022739,2]
[357426794,1744063880147,-500.0,0.00022739,2]
[357426795,1744063880157,-500.0,0.00022739,2]
[357426796,1744063880166,-500.0,0.00022739,2]
[357426797,1744063880176,-500.0,0.00022739,2]
[357426798,1744063880185,-454.45989148,0.00022739,2]
[357426799,1744063880195,-500.0,0.00022739,2]
[357426800,1744063880205,-500.0,0.00022739,2]
[357426801,1744063880214,-545.30271502,0.00022739,2]
[357426802,1744063880230,-500.0,0.00022739,2]
[357426803,1744063880240,-500.0,0.00022739,2]
[357426804,1744063880250,-500.0,0.00022739,2]
[357426805,1744063880260,-500.0,0.00022739,2]
[357426806,1744063880270,-500.0,0.00022739,2]
[357426807,1744063880280,-500.0,0.00022739,2]
[357426808,1744063880289,-500.0,0.00022739,2]
[357426809,1744063880300,-1072.12,0.00022739,2]
[357426810,1744063880311,-500.0,0.00022739,2]
[357426811,1744063880320,-256.25632198,0.00022739,2]
[357426812,1744063880330,-500.0,0.00022739,2]
[357426813,1744063880339,-500.0,0.00022739,2]
[357426814,1744063880348,-500.0,0.00022739,2]
[357426815,1744063880358,-500.0,0.00022739,2]
[357426816,1744063880368,-500.0,0.00022739,2]
[357426817,1744063880378,-500.0,0.00022739,2]
[357426818,1744063880387,-500.0,0.00022739,2]
[357426819,1744063880397,-500.0,0.00022739,2]
[357426820,1744063880407,-500.0,0.00022739,2]
[357426821,1744063880417,-500.0,0.00022739,2]
[357426822,1744063880427,-500.0,0.00022739,2]
[357426823,1744063880436,-501.20234767,0.00022739,2]
[357426824,1744063880446,-500.0,0.00022739,2]
[357426825,1744063880456,-500.0,0.00022739,2]
[357426826,1744063880467,-500.0,0.00022739,2]
[357426827,1744063880477,-500.0,0.00022739,2]
[357426828,1744063880619,-500.0,0.00022739,2]
[357426829,1744063880630,-500.0,0.00022739,2]
[357426830,1744063880640,-506.221688,0.00022739,2]
[357426831,1744063880649,-510.43546876,0.00022739,2]
[357426832,1744063880659,-500.0,0.00022739,2]
[357426833,1744063880669,-500.0,0.00022739,2]
[357426834,1744063880679,-500.0,0.00022739,2]
[357426835,1744063880688,-500.0,0.00022739,2]
[357426836,1744063880698,-637.37,0.00022739,2]
[357426837,1744063880707,-500.0,0.00022739,2]
[357426838,1744063880717,-500.0,0.00022739,2]
[357426839,1744063880729,-500.0,0.00022739,2]
[357426840,1744063880741,-795.37,0.00022739,2]
[357426841,1744063880752,-500.0,0.00022739,2]
[357426842,1744063880761,-500.0,0.00022739,2]
[357426843,1744063880771,-500.0,0.00022739,2]
[357426844,1744063880781,-500.0,0.00022739,2]
[357426845,1744063880790,-500.0,0.00022739,2]
[357426846,1744063880801,-500.0,0.00022739,2]
[357426847,1744063880810,-681.95,0.00022739,2]
[357426848,1744063880820,-500.0,0.00022739,2]
[357426849,1744063880830,-577.08234402,0.00022739,2]
[357426850,1744063880840,-701.4,0.00022739,2]
[357426851,1744063880850,-500.0,0.00022739,2]
[357426852,1744063880859,-500.0,0.00022739,2]
[357426853,1744063880870,-500.0,0.00022739,2]
[357426854,1744063880879,-500.0,0.00022739,2]
[357426855,1744063880889,-500.0,0.00022739,2]
[357426856,1744063880898,-500.0,0.00022739,2]
[357426857,1744063880908,-500.0,0.00022739,2]
[357426858,1744063880917,-500.0,0.00022739,2]
[357426859,1744063880927,-500.0,0.00022739,2]
[357426860,1744063880937,-605.63,0.00022739,2]
[357426861,1744063880947,-500.0,0.00022739,2]
[357426862,1744063880956,-500.0,0.00022739,2]
[357426863,1744063880966,-500.0,0.00022739,2]
[357426864,1744063880975,-500.0,0.00022739,2]
[357426865,1744063880985,-500.0,0.00022739,2]
[357426866,1744063880996,-500.0,0.00022739,2]
[357426867,1744063881006,-486.02386843,0.00022739,2]
[357426868,1744063881016,-500.0,0.00022739,2]
[357426869,1744063881025,-635.58,0.00022739,2]
[357426870,1744063881035,-503.73616726,0.00022739,2]
[357426871,1744063881044,-500.0,0.00022739,2]
[357426872,1744063881054,-500.0,0.00022739,2]
[357426873,1744063881064,-500.0,0.00022739,2]
[357426874,1744063881074,-500.0,0.00022739,2]
[357426875,1744063881084,-618.83,0.00022739,2]
[357426876,1744063881094,-500.0,0.00022739,2]
[357426877,1744063881104,-1319.58,0.00022739,2]
[357426878,1744063881114,-500.0,0.00022739,2]
[357426879,1744063881124,-500.0,0.00022739,2]
[357426880,1744063881134,-500.0,0.00022739,2]
[357426881,1744063881144,-586.14,0.00022739,2]
[357426882,1744063881154,-500.0,0.00022739,2]
[357426883,1744063881163,-965.15,0.00022739,2]
[357426884,1744063881173,-523.5606504,0.00022739,2]
[357426885,1744063881183,-500.0,0.00022739,2]
[357426886,1744063881192,-500.0,0.00022739,2]
[357426887,1744063881202,-590.46,0.00022739,2]
[357426888,1744063881211,-500.0,0.00022739,2]
[357426889,1744063881225,-500.0,0.00022739,2]
[357426890,1744063881235,-1172.04,0.00022739,2]
[357426891,1744063881245,-500.0,0.00022739,2]
[357426892,1744063881254,-500.0,0.00022739,2]
[357426893,1744063881265,-500.0,0.00022739,2]
[357426894,1744063881275,-500.0,0.00022739,2]
[357426895,1744063881285,-500.0,0.00022739,2]
[357426896,1744063881295,-500.0,0.00022739,2]
[357426897,1744063881306,-500.0,0.00022739,2]
[357426898,1744063881315,-509.93,0.00022739,2]
[357426899,1744063881325,-500.0,0.00022739,2]
[357426900,1744063881334,-1010.05,0.00022739,2]
[357426901,1744063881344,-647.31,0.00022739,2]
[357426902,1744063881354,-575.42939842,0.00022739,2]
[357426903,1744063881363,-265.65774636,0.00022739,2]
[357426904,1744063881373,-328.29207539,0.00022739,2]
[357426905,1744063881382,-500.0,0.00022739,2]
[357426906,1744063881391,-1000.0,0.00022739,2]
[357426907,1744063881401,-500.0,0.00022739,2]
[357426908,1744063881411,-500.0,0.00022739,2]
[357426909,1744063881420,-683.72,0.00022739,2]
[357426910,1744063881449,-927.22,0.00022739,2]
[357426911,1744063881467,-500.0,0.00022739,2]
[357426912,1744063881489,-500.0,0.00022739,2]
[357426913,1744063881513,-2388.74,0.00022739,2]
[357426914,1744063881535,-500.0,0.00022739,2]
[357426915,1744063881554,-500.0,0.00022739,2]
[357426916,1744063881576,-500.0,0.00022739,2]
[357426917,1744063881593,-500.0,0.00022739,2]
[357426918,1744063881610,-500.0,0.00022739,2]
[357426919,1744063881631,-500.0,0.00022739,2]
[357426920,1744063881657,-500.0,0.00022739,2]
[357426921,1744063881670,-500.0,0.00022739,2]
[357426922,1744063881690,-500.0,0.00022739,2]
[357426923,1744063881711,-5151.25,0.00022739,2]
[357426924,1744063881731,-516.53482875,0.00022739,2]
[357426925,1744063881750,-500.0,0.00022739,2]
[357426926,1744063881764,-500.0,0.00022739,2]
[357426927,1744063881783,-500.0,0.00022739,2]
[357426928,1744063881801,-500.0,0.00022739,2]
[357426929,1744063881818,-500.0,0.00022739,2]
[357426930,1744063881834,-500.0,0.00022739,2]
[357426931,1744063881851,-500.0,0.00022739,2]
[357426932,1744063881868,-500.0,0.00022739,2]
[357426933,1744063881885,-508.44198049,0.00022739,2]
[357426934,1744063881901,-641.09,0.00022739,2]
[357426935,1744063881918,-500.0,0.00022739,2]
[357426936,1744063881935,-500.0,0.00022739,2]
[357426937,1744063881953,-500.0,0.00022739,2]
[357426938,1744063881970,-500.0,0.00022739,2]
[357426939,1744063881988,-500.0,0.00022739,2]
[357426940,1744063882005,-500.0,0.00022739,2]
[357426941,1744063882021,-1515.42,0.00022739,2]
[357426942,1744063882038,-500.0,0.00022739,2]
[357426943,1744063882055,-500.0,0.00022739,2]
[357426944,1744063882073,-500.0,0.00022739,2]
[357426945,1744063882090,-1223.9,0.00022739,2]
[357426946,1744063882108,-972.05,0.00022739,2]
[357426947,1744063882125,-500.0,0.00022739,2]
[357426948,1744063882142,-500.0,0.00022739,2]
[357426949,1744063882158,-1029.9,0.00022739,2]
[357426950,1744063882176,-333.99251808,0.00022739,2]
[357426951,1744063882193,-710.69,0.00022739,2]
[357426952,1744063882210,-500.0,0.00022739,2]
[357426953,1744063882229,-514.93,0.00022739,2]
[357426954,1744063882245,-500.0,0.00022739,2]
[357426955,1744063882264,-500.0,0.00022739,2]
[357426956,1744063882281,-500.0,0.00022739,2]
[357426957,1744063882300,-617.33821747,0.00022739,2]
[357426958,1744063882317,-500.0,0.00022739,2]
[357426959,1744063882334,-500.0,0.00022739,2]
[357426960,1744063882351,-500.0,0.00022739,2]
[357426961,1744063882368,-500.0,0.00022739,2]
[357426962,1744063882385,-500.0,0.00022739,2]
[357426963,1744063882402,-500.0,0.00022739,2]
[357426964,1744063882419,-500.0,0.00022739,2]
[357426965,1744063882437,-500.0,0.00022739,2]
[357426966,1744063882454,-500.97849072,0.00022739,2]
[357426967,1744063882475,-500.0,0.00022739,2]
[357426968,1744063882492,-500.0,0.00022739,2]
[357426969,1744063882511,-630.65,0.00022739,2]
[357426970,1744063882527,-500.0,0.00022739,2]
[357426971,1744063882544,-500.0,0.00022739,2]
[357426972,1744063882563,-500.0,0.00022739,2]
[357426973,1744063882581,-500.0,0.00022739,2]
[357426974,1744063882599,-1716.22,0.00022739,2]
[357426975,1744063882617,-500.0,0.00022739,2]
[357426976,1744063882635,-601.19,0.00022739,2]
[357426977,1744063882651,-500.0,0.00022739,2]
[357426978,1744063882669,-1677.61,0.00022739,2]
[357426979,1744063882686,-500.0,0.00022739,2]
[357426980,1744063882704,-526.01,0.00022739,2]
[357426981,1744063882721,-500.0,0.00022739,2]
[357426982,1744063882738,-1206.67,0.00022739,2]
[357426983,1744063882757,-500.0,0.00022739,2]
[357426984,1744063882773,-500.0,0.00022739,2]
[357426985,1744063882791,-500.0,0.00022739,2]
[357426986,1744063882808,-500.0,0.00022739,2]
[357426987,1744063882825,-500.0,0.00022739,2]
[357426988,1744063882844,-500.0,0.00022739,2]
[357426989,1744063882862,-500.0,0.00022739,2]
[357426990,1744063882881,-200.0,0.00022739,2]
[357426991,1744063883095,-1866.81,0.00022739,2]
[357426992,1744063883106,-631.76,0.00022739,2]
[357426993,1744063883116,-500.0,0.00022739,2]
[357426994,1744063883126,-500.0,0.00022739,2]
[357426995,1744063883136,-876.5,0.00022739,2]
[357426996,1744063883146,-500.0,0.00022739,2]
[357426997,1744063883156,-711.58,0.00022739,2]
[357426998,1744063883166,-775.52,0.00022739,2]
[357426999,1744063883176,-731.46,0.00022739,2]
[357427000,1744063883186,-500.0,0.00022739,2]
[357427001,1744063883196,-500.0,0.00022739,2]
[357427002,1744063883206,-500.0,0.00022739,2]
[357427003,1744063883216,-500.0,0.00022739,2]
[357427004,1744063883229,-500.0,0.00022739,2]
[357427005,1744063883239,-553.94657099,0.00022739,2]
[357427006,1744063883248,-500.0,0.00022739,2]
[357427007,1744063883259,-500.0,0.00022739,2]
[357427008,1744063883268,-372.07908832,0.00022739,2]
[357427009,1744063883278,-500.0,0.00022739,2]
[357427010,1744063883287,-578.19,0.00022739,2]
[357427011,1744063883299,-1407.84,0.00022739,2]
[357427012,1744063883308,-500.0,0.00022739,2]
[357427013,1744063883318,-502.83712332,0.00022739,2]
[357427014,1744063883328,-500.0,0.00022739,2]
[357427015,1744063883338,-500.0,0.00022739,2]
[357427016,1744063883348,-500.0,0.00022739,2]
[357427017,1744063883357,-500.0,0.00022739,2]
[357427018,1744063883366,-500.0,0.00022739,2]
[357427019,1744063883376,-500.0,0.00022739,2]
[357427020,1744063883385,-500.0,0.00022739,2]
[357427021,1744063883395,-500.0,0.00022739,2]
[357427022,1744063883404,-673.31,0.00022739,2]
[357427023,1744063883414,-500.0,0.00022739,2]
[357427024,1744063883423,-500.0,0.00022739,2]
[357427025,1744063883433,-860.82,0.00022739,2]
[357427026,1744063883444,-500.0,0.00022739,2]
[357427027,1744063883453,-584.63,0.00022739,2]
[357427028,1744063883463,-500.0,0.00022739,2]
[357427029,1744063883473,-500.0,0.00022739,2]
[357427030,1744063883483,-500.0,0.00022739,2]
[357427031,1744063883493,-500.0,0.00022739,2]
[357427032,1744063883502,-500.0,0.00022739,2]
[357427033,1744063883512,-875.61,0.00022739,2]
[357427034,1744063883522,-500.0,0.00022739,2]
[357427035,1744063883532,-199.10984359,0.00022739,2]
[357427036,1744063883541,-501.31,0.00022739,2]
[357427037,1744063883551,-500.0,0.00022739,2]
[357427038,1744063883561,-500.0,0.00022739,2]
[357427039,1744063883571,-500.0,0.00022739,2]
[357427040,1744063883581,-1137.86,0.00022739,2]
[357427041,1744063883590,-500.0,0.00022739,2]
[357427042,1744063883600,-724.96,0.00022739,2]
[357427043,1744063883610,-500.0,0.00022739,2]
[357427044,1744063883619,-500.0,0.00022739,2]
[357427045,1744063883629,-500.0,0.00022739,2]
[357427046,1744063883639,-500.0,0.00022739,2]
[357427047,1744063883648,-560.96,0.00022739,2]
[357427048,1744063883658,-500.0,0.00022739,2]
[357427049,1744063883668,-1851.71,0.00022739,2]
[357427050,1744063883678,-500.0,0.00022739,2]
[357427051,1744063883688,-500.0,0.00022739,2]
[357427052,1744063883699,-502.80721394,0.00022739,2]
[357427053,1744063883708,-500.0,0.00022739,2]
[357427054,1744063883718,-500.0,0.00022739,2]
[357427055,1744063883727,-500.0,0.00022739,2]
[357427056,1744063883737,-500.0,0.00022739,2]
[357427057,1744063883747,-500.0,0.00022739,2]
[357427058,1744063883757,-616.93,0.00022739,2]
[357427059,1744063883767,-992.11,0.00022739,2]
[357427060,1744063883777,-1076.39,0.00022739,2]
[357427061,1744063883786,-500.0,0.00022739,2]
[357427062,1744063883796,-500.0,0.00022739,2]
[357427063,1744063883806,-500.0,0.00022739,2]
[357427064,1744063883816,-500.0,0.00022739,2]
[357427065,1744063883826,-500.0,0.00022739,2]
[357427066,1744063883835,-500.0,0.00022739,2]
[357427067,1744063883845,-2026.48,0.00022739,2]
[357427068,1744063883854,-500.0,0.00022739,2]
[357427069,1744063883864,-500.0,0.00022739,2]
[357427070,1744063883874,-953.83,0.00022739,2]
[357427071,1744063883884,-500.0,0.00022739,2]
[357427072,1744063883894,-500.0,0.00022739,2]
[357427073,1744063883904,-500.0,0.00022739,2]
[357427074,1744063883914,-2969.41,0.00022739,2]
[357427075,1744063883924,-500.0,0.00022739,2]
[357427076,1744063883934,-1097.58,0.00022739,2]
[357427077,1744063883943,-519.65,0.00022739,2]
[357427078,1744063883954,-500.0,0.00022739,2]
[357427079,1744063883963,-2444.99,0.00022739,2]
[357427080,1744063883974,-500.0,0.00022739,2]
[357427081,1744063883984,-500.0,0.00022739,2]
[357427082,1744063883994,-503.78716901,0.00022739,2]
[357427083,1744063884004,-976.7,0.00022739,2]
[357427084,1744063884014,-500.0,0.00022739,2]
[357427085,1744063884023,-500.0,0.00022739,2]
[357427086,1744063884033,-1051.44,0.00022739,2]
[357427087,1744063884043,-500.0,0.00022739,2]
[357427088,1744063884053,-500.0,0.00022739,2]
[357427089,1744063884063,-540.47,0.00022739,2]
[357427090,1744063884072,-543.21,0.00022739,2]
[357427091,1744063884082,-668.11,0.00022739,2]
[357427092,1744063884092,-853.08,0.00022739,2]
[357427093,1744063884102,-1262.71,0.00022739,2]
[357427094,1744063884112,-525.11239203,0.00022739,2]
[357427095,1744063884121,-500.0,0.00022739,2]
[357427096,1744063884131,-500.0,0.00022739,2]
[357427097,1744063884141,-500.0,0.00022739,2]
[357427098,1744063884151,-500.0,0.00022739,2]
[357427099,1744063884161,-500.0,0.00022739,2]
[357427100,1744063884171,-500.0,0.00022739,2]
[357427101,1744063884181,-500.0,0.00022739,2]
[357427102,1744063884190,-2569.27,0.00022739,2]
[357427103,1744063884200,-500.0,0.00022739,2]
[357427104,1744063884210,-1733.23,0.00022739,2]
[357427105,1744063884222,-893.36,0.00022739,2]
[357427106,1744063884232,-2016.49,0.00022739,2]
[357427107,1744063884241,-1152.06,0.00022739,2]
[357427108,1744063884251,-500.0,0.00022739,2]
[357427109,1744063884262,-540.38961296,0.00022739,2]
[357427110,1744063884271,-500.0,0.00022739,2]
[357427111,1744063884281,-500.0,0.00022739,2]
[357427112,1744063884292,-510.75034186,0.00022739,2]
[357427113,1744063884303,-552.64,0.00022739,2]
[357427114,1744063884314,-18581.5,0.00022739,2]
[357427115,1744063884324,-434.21698669,0.00022739,2]
[357427116,1744063884334,-500.0,0.00022739,2]
[357427117,1744063884344,-500.0,0.00022739,2]
[357427118,1744063884353,-500.0,0.00022739,2]
[357427119,1744063884364,-2267.89,0.00022739,2]
[357427120,1744063884374,-4269.8,0.00022739,2]
[357427121,1744063884384,-500.0,0.00022739,2]
[357427122,1744063884394,-500.0,0.00022739,2]
[357427123,1744063884404,-500.0,0.00022739,2]
[357427124,1744063884414,-1821.78,0.00022739,2]
[357427125,1744063884424,-500.0,0.00022739,2]
[357427126,1744063884433,-703.14,0.00022739,2]
[357427127,1744063884443,-537.8569497,0.00022739,2]
[357427128,1744063884453,-998.23,0.00022739,2]
[357427129,1744063884462,-2845.59,0.00022739,2]
[357427130,1744063884472,-544.04,0.00022739,2]
[357427131,1744063884482,-500.0,0.00022739,2]
[357427132,1744063884491,-500.0,0.00022739,2]
[357427133,1744063884501,-3675.16,0.00022739,2]
[357427134,1744063884511,-925.05,0.00022739,2]
[357427135,1744063884520,-500.0,0.00022739,2]
[357427136,1744063884530,-500.0,0.00022739,2]
[357427137,1744063884540,-500.0,0.00022739,2]
[357427138,1744063884551,-500.0,0.00022739,2]
[357427139,1744063884561,-500.0,0.00022739,2]
[357427140,1744063884570,-510.45166074,0.00022739,2]
[357427141,1744063884580,-500.0,0.00022739,2]
[357427142,1744063884590,-500.0,0.00022739,2]
[357427143,1744063884600,-500.0,0.00022739,2]
[357427144,1744063884609,-500.0,0.00022739,2]
[357427145,1744063884619,-500.0,0.00022739,2]
[357427146,1744063884629,-1424.89,0.00022739,2]
[357427147,1744063884639,-531.41262032,0.00022739,2]
[357427148,1744063884648,-500.0,0.00022739,2]
[357427149,1744063884658,-500.0,0.00022739,2]
[357427150,1744063884667,-500.0,0.00022739,2]
[357427151,1744063884678,-500.0,0.00022739,2]
[357427152,1744063884687,-665.06,0.00022739,2]
[357427153,1744063884697,-500.0,0.00022739,2]
[357427154,1744063884706,-500.0,0.00022739,2]
[357427155,1744063884716,-500.0,0.00022739,2]
[357427156,1744063884727,-500.0,0.00022739,2]
[357427157,1744063884736,-517.52824986,0.00022739,2]
[357427158,1744063884747,-545.95,0.00022739,2]
[357427159,1744063884756,-500.0,0.00022739,2]
[357427160,1744063884766,-500.0,0.00022739,2]
[357427161,1744063884776,-500.0,0.00022739,2]
[357427162,1744063884786,-500.0,0.00022739,2]
[357427163,1744063884796,-500.0,0.00022739,2]
[357427164,1744063884807,-500.0,0.00022739,2]
[357427165,1744063884817,-528.27432697,0.00022739,2]
[357427166,1744063884827,-500.0,0.00022739,2]
[357427167,1744063884837,-2391.05,0.00022739,2]
[357427168,1744063884847,-500.0,0.00022739,2]
[357427169,1744063884856,-1497.52,0.00022739,2]
[357427170,1744063884866,-500.0,0.00022739,2]
[357427171,1744063884876,-1082.74,0.00022739,2]
[357427172,1744063884886,-500.0,0.00022739,2]
[357427173,1744063884896,-651.9,0.00022739,2]
[357427174,1744063884905,-512.24758946,0.00022739,2]
[357427175,1744063884915,-2766.76,0.00022739,2]
[357427176,1744063884926,-500.0,0.00022739,2]
[357427177,1744063884935,-895.7,0.00022739,2]
[357427178,1744063885098,-572.77,0.00022739,2]
[357427179,1744063885108,-2482.06,0.00022739,2]
[357427180,1744063885117,-500.0,0.00022739,2]
[357427181,1744063885127,-967.61,0.00022739,2]
[357427182,1744063885136,-500.0,0.00022739,2]
[357427183,1744063885146,-500.0,0.00022739,2]
[357427184,1744063885155,-1151.37,0.00022739,2]
[357427185,1744063885164,-2726.63,0.00022739,2]
[357427186,1744063885174,-646.66,0.00022739,2]
[357427187,1744063885183,-500.0,0.00022739,2]
[357427188,1744063885193,-500.0,0.00022739,2]
[357427189,1744063885203,-6139.74,0.00022739,2]
[357427190,1744063885212,-500.0,0.00022739,2]
[357427191,1744063885226,-500.0,0.00022739,2]
[357427192,1744063885236,-500.0,0.00022739,2]
[357427193,1744063885246,-4219.24,0.00022739,2]
[357427194,1744063885256,-629.38,0.00022739,2]
[357427195,1744063885267,-4760.8,0.00022739,2]
[357427196,1744063885277,-500.0,0.00022739,2]
[357427197,1744063885287,-500.0,0.00022739,2]
[357427198,1744063885298,-4549.61,0.00022739,2]
[357427199,1744063885308,-500.0,0.00022739,2]
[357427200,1744063885318,-500.0,0.00022739,2]
[357427201,1744063885328,-500.0,0.00022739,2]
[357427202,1744063885338,-500.0,0.00022739,2]
[357427203,1744063885348,-500.0,0.00022739,2]
[357427204,1744063885358,-500.0,0.00022739,2]
[357427205,1744063885367,-724.07,0.00022739,2]
[357427206,1744063885377,-500.0,0.00022739,2]
[357427207,1744063885387,-487.20072413,0.00022739,2]
[357427208,1744063885397,-500.0,0.00022739,2]
[357427209,1744063885407,-11557.25,0.00022739,2]
[357427210,1744063885416,-500.0,0.00022739,2]
[357427211,1744063885426,-2661.52,0.00022739,2]
[357427212,1744063885435,-500.0,0.00022739,2]
[357427213,1744063885445,-500.0,0.00022739,2]
[357427214,1744063885455,-500.0,0.00022739,2]
[357427215,1744063885465,-575.44930738,0.00022739,2]
[357427216,1744063885474,-3398.84,0.00022739,2]
[357427217,1744063885484,-500.0,0.00022739,2]
[357427218,1744063885494,-500.0,0.00022739,2]
[357427219,1744063885503,-450.92584082,0.00022739,2]
[357427220,1744063885512,-500.0,0.00022739,2]
[357427221,1744063885522,-500.0,0.00022739,2]
[357427222,1744063885531,-618.39,0.00022739,2]
[357427223,1744063885541,-500.0,0.00022739,2]
[357427224,1744063885551,-500.0,0.00022739,2]
[357427225,1744063885561,-500.0,0.00022739,2]
[357427226,1744063885571,-569.1,0.00022739,2]
[357427227,1744063885580,-2313.7,0.00022739,2]
[357427228,1744063885590,-745.72,0.00022739,2]
[357427229,1744063885600,-500.0,0.00022739,2]
[357427230,1744063885610,-590.97,0.00022739,2]
[357427231,1744063885619,-3056.09,0.00022739,2]
[357427232,1744063885629,-500.0,0.00022739,2]
[357427233,1744063885639,-500.0,0.00022739,2]
[357427234,1744063885649,-500.0,0.00022739,2]
[357427235,1744063885658,-500.0,0.00022739,2]
[357427236,1744063885668,-3478.82,0.00022739,2]
[357427237,1744063885677,-500.0,0.00022739,2]
[357427238,1744063885687,-500.0,0.00022739,2]
[357427239,1744063885697,-500.0,0.00022739,2]
[357427240,1744063885707,-351.79183442,0.00022739,2]
[357427241,1744063885716,-819.56,0.00022739,2]
[357427242,1744063885726,-500.0,0.00022739,2]
[357427243,1744063885735,-1068.57,0.00022739,2]
[357427244,1744063885744,-500.0,0.00022739,2]
[357427245,1744063885754,-500.0,0.00022739,2]
[357427246,1744063885764,-363.68978243,0.00022739,2]
[357427247,1744063885774,-621.56,0.00022739,2]
[357427248,1744063885783,-3744.49,0.00022739,2]
[357427249,1744063885793,-500.0,0.00022739,2]
[357427250,1744063885804,-500.0,0.00022739,2]
[357427251,1744063885814,-3303.4,0.00022739,2]
[357427252,1744063885824,-872.78,0.00022739,2]
[357427253,1744063885835,-500.0,0.00022739,2]
[357427254,1744063885844,-500.0,0.00022739,2]
[357427255,1744063885854,-500.0,0.00022739,2]
[357427256,1744063885864,-500.0,0.00022739,2]
[357427257,1744063885873,-500.0,0.00022739,2]
[357427258,1744063885883,-500.0,0.00022739,2]
[357427259,1744063885892,-6566.66,0.00022739,2]
[357427260,1744063885902,-591.38,0.00022739,2]
[357427261,1744063885911,-500.0,0.00022739,2]
[357427262,1744063885921,-3728.64,0.00022739,2]
[357427263,1744063885930,-4428.79,0.00022739,2]
[357427264,1744063885940,-500.0,0.00022739,2]
[357427265,1744063885950,-500.0,0.00022739,2]
[357427266,1744063885959,-578.00579818,0.00022739,2]
[357427267,1744063885969,-500.0,0.00022739,2]
[357427268,1744063885978,-615.78,0.00022739,2]
[357427269,1744063885988,-1390.87,0.00022739,2]
[357427270,1744063885997,-500.0,0.00022739,2]
[357427271,1744063886007,-500.0,0.00022739,2]
[357427272,1744063886017,-890.23,0.00022739,2]
[357427273,1744063886026,-2219.7,0.00022739,2]
[357427274,1744063886036,-500.0,0.00022739,2]